fUST/lending_fUST_20241121
["ID","MTS","AMOUNT","RATE_DAILY","PERIOD"]
[342762261,1732119049819,-500.0,0.0002356,2]
[342762262,1732119049830,-500.0,0.0002356,2]
[342762263,1732119049840,-500.0,0.0002356,2]
[342762264,1732119049849,-500.0,0.0002356,2]
[342762265,1732119049859,-500.0,0.0002356,2]
[342762266,1732119049868,-500.0,0.0002356,2]
[342762267,1732119049879,-500.0,0.0002356,2]
[342762268,1732119049888,-500.0,0.0002356,2]
[342762269,1732119049898,-500.0,0.0002356,2]
[342762270,1732119049907,-200.0,0.0002356,2]
[342762271,1732119049917,-500.0,0.0002356,2]
[342762272,1732119049926,-500.0,0.0002356,2]
[342762273,1732119049937,-500.0,0.0002356,2]
[342762274,1732119049946,-500.0,0.0002356,2]
[342762275,1732119049954,-500.0,0.0002356,2]
[342762276,1732119049963,-500.0,0.0002356,2]
[342762277,1732119049973,-715.1,0.0002356,2]
[342762278,1732119049985,-535.74,0.0002356,2]
[342762279,1732119049994,-520.4643529,0.0002356,2]
[342762280,1732119050004,-684.43,0.0002356,2]
[342762281,1732119050013,-500.0,0.0002356,2]
[342762282,1732119050023,-249.51,0.0002356,2]
[342762283,1732119050032,-1376.81,0.0002356,2]
[342762284,1732119050042,-500.0,0.0002356,2]
[342762285,1732119050052,-500.0,0.0002356,2]
[342762286,1732119050061,-500.0,0.0002356,2]
[342762287,1732119050071,-181.81,0.0002356,2]
[342762288,1732119050081,-936.96,0.0002356,2]
[342762289,1732119050090,-500.0,0.0002356,2]
[342762290,1732119050100,-500.0,0.0002356,2]
[342762291,1732119050109,-2637.14,0.0002356,2]
[342762292,1732119050118,-829.25,0.0002356,2]
[342762293,1732119050127,-509.41,0.0002356,2]
[342762294,1732119050136,-500.0,0.0002356,2]
[342762295,1732119050146,-672.63,0.0002356,2]
[342762296,1732119050156,-500.0,0.0002356,2]
[342762297,1732119050167,-500.0,0.00023561,2]
[342762298,1732119050176,-7034.76,0.00023561,2]
[342762299,1732119050186,-500.0,0.00023561,2]
[342762300,1732119050196,-1167.56,0.00023561,2]
[342762301,1732119050205,-2386.86,0.00023561,2]
[342762302,1732119050215,-540.69,0.00023561,2]
[342762303,1732119050226,-796.62,0.00023561,2]
[342762304,1732119050238,-500.0,0.00023561,2]
[342762305,1732119050254,-2396.96,0.00023561,2]
[342762306,1732119050264,-500.0,0.00023561,2]
[342762307,1732119050273,-500.0,0.00023561,2]
[342762308,1732119050283,-500.0,0.00023561,2]
[342762309,1732119050293,-1074.95,0.00023561,2]
[342762310,1732119050302,-500.0,0.00023561,2]
[342762311,1732119050312,-258.784,0.00023603,4]
[342762312,1732119050322,-501.03721224,0.00023687,2]
[342762313,1732119050331,-500.0,0.00023687,2]
[342762314,1732119050341,-500.0,0.00023687,2]
[342762315,1732119050351,-162.81242913,0.00023687,2]
[342762316,1732119050360,-503.45270771,0.00023687,2]
[342762317,1732119050370,-481.73170237,0.00023687,2]
[342762318,1732119050379,-500.0,0.00023687,2]
[342762319,1732119050389,-500.0,0.00023687,2]
[342762320,1732119050399,-432.00595815,0.00023687,2]
[342762321,1732119050408,-442.65,0.000237,2]
[342762322,1732119050418,-500.0,0.00023707,2]
[342762323,1732119050427,-500.0,0.00023707,2]
[342762324,1732119050436,-500.0,0.00023775,2]
[342762325,1732119050449,-501.10720954,0.00023798,2]
[342762326,1732119050459,-500.81125376,0.00023798,2]
[342762327,1732119050467,-500.0,0.00023798,2]
[342762328,1732119050479,-364.12025531,0.00023805,2]
[342762329,1732119050489,-173.35336262,0.00023805,2]
[342762330,1732119050499,-160.76253304,0.00023805,2]
[342762331,1732119050509,-514.45234079,0.00023805,2]
[342762332,1732119050520,-330.53241384,0.00023805,2]
[342762333,1732119050529,-366.22338313,0.00023805,2]
[342762334,1732119050540,-497.33156872,0.00023805,2]
[342762335,1732119050550,-500.96071574,0.00023805,2]
[342762336,1732119050560,-150.97184534,0.00023805,2]
[342762337,1732119050569,-207.44520227,0.00023811,2]
[342762338,1732119050579,-500.0,0.00023813,2]
[342762339,1732119050589,-4140.21,0.00023832,2]
[342762340,1732119050599,-696.54,0.00023832,2]
[342762341,1732119050609,-500.0,0.00023832,2]
[342762342,1732119050618,-500.0,0.00023832,2]
[342762343,1732119050628,-2107.99,0.00023832,2]
[342762344,1732119050637,-500.0,0.00023833,2]
[342762345,1732119050647,-500.0,0.00023833,2]
[342762346,1732119050656,-500.0,0.00023833,2]
[342762347,1732119050666,-500.0,0.00023833,2]
[342762348,1732119050675,-551.5,0.00023833,2]
[342762349,1732119050684,-500.0,0.00023833,2]
[342762350,1732119050693,-500.0,0.00023833,2]
[342762351,1732119050703,-500.0,0.00023833,2]
[342762352,1732119050713,-500.0,0.00023833,2]
[342762353,1732119050722,-500.0,0.00023833,2]
[342762354,1732119050734,-500.0,0.00023833,2]
[342762355,1732119050743,-500.0,0.00023833,2]
[342762356,1732119050753,-500.0,0.00023833,2]
[342762357,1732119050762,-500.0,0.00023833,2]
[342762358,1732119050846,-500.0,0.00023833,2]
[342762359,1732119050857,-500.0,0.00023833,2]
[342762360,1732119050867,-500.0,0.00023833,2]
[342762361,1732119050876,-500.0,0.00023833,2]
[342762362,1732119050886,-225.29518435,0.00023833,2]
[342762363,1732119050895,-500.0,0.00023833,2]
[342762364,1732119050905,-500.0,0.00023833,2]
[342762365,1732119050915,-500.0,0.00023833,2]
[342762366,1732119050925,-500.0,0.00023833,2]
[342762367,1732119050935,-500.0,0.00023833,2]
[342762368,1732119050945,-500.0,0.00023833,2]
[342762369,1732119050956,-500.0,0.00023833,2]
[342762370,1732119050966,-695.65,0.00023833,2]
[342762371,1732119050976,-500.0,0.00023833,2]
[342762372,1732119050987,-500.0,0.00023833,2]
[342762373,1732119050997,-500.0,0.00023833,2]
[342762374,1732119051007,-500.0,0.00023833,2]
[342762375,1732119051017,-500.0,0.00023833,2]
[342762376,1732119051026,-500.0,0.00023833,2]
[342762377,1732119051036,-500.0,0.00023833,2]
[342762378,1732119051047,-500.0,0.00023833,2]
[342762379,1732119051057,-500.0,0.00023833,2]
[342762380,1732119051066,-500.0,0.00023833,2]
[342762381,1732119051076,-1402.4,0.00023833,2]
[342762382,1732119051086,-515.63,0.00023833,2]
[342762383,1732119051096,-500.0,0.00023833,2]
[342762384,1732119051105,-771.88,0.00023833,2]
[342762385,1732119051115,-1712.23,0.00023833,2]
[342762386,1732119051125,-537.53907059,0.00023834,2]
[342762387,1732119051134,-500.0,0.00023834,2]
[342762388,1732119051144,-500.0,0.00023834,2]
[342762389,1732119051154,-500.0,0.00023834,2]
[342762390,1732119051164,-500.0,0.00023834,2]
[342762391,1732119051174,-500.0,0.00023834,2]
[342762392,1732119051183,-500.0,0.00023834,2]
[342762393,1732119051193,-500.0,0.00023834,2]
[342762394,1732119051203,-500.0,0.00023834,2]
[342762395,1732119051212,-500.0,0.00023834,2]
[342762396,1732119051222,-500.0,0.00023834,2]
[342762397,1732119051233,-500.0,0.00023834,2]
[342762398,1732119051242,-500.0,0.00023834,2]
[342762399,1732119051252,-500.0,0.00023834,2]
[342762400,1732119051261,-500.0,0.00023834,2]
[342762401,1732119051270,-500.0,0.00023834,2]
[342762402,1732119051279,-173.35,0.00023834,2]
[342762403,1732119051289,-401.19,0.00023834,2]
[342762404,1732119051299,-200.0,0.00023834,2]
[342762405,1732119051308,-500.0,0.00023834,2]
[342762406,1732119051317,-500.0,0.00023834,2]
[342762407,1732119051326,-500.0,0.00023834,2]
[342762408,1732119051335,-500.0,0.00023834,2]
[342762409,1732119051343,-500.0,0.00023834,2]
[342762410,1732119051353,-500.0,0.00023834,2]
[342762411,1732119051362,-715.1,0.00023834,2]
[342762412,1732119051372,-535.74,0.00023834,2]
[342762413,1732119051381,-684.43,0.00023834,2]
[342762414,1732119051390,-500.0,0.00023834,2]
[342762415,1732119051400,-1376.81,0.00023834,2]
[342762416,1732119051410,-500.0,0.00023834,2]
[342762417,1732119051419,-500.0,0.00023834,2]
[342762418,1732119051428,-936.96,0.00023834,2]
[342762419,1732119051437,-500.0,0.00023834,2]
[342762420,1732119051447,-576.22,0.00023834,2]
[342762421,1732119051459,-2637.14,0.00023834,2]
[342762422,1732119051468,-829.25,0.00023834,2]
[342762423,1732119051477,-509.41,0.00023834,2]
[342762424,1732119051487,-500.0,0.00023834,2]
[342762425,1732119051497,-672.63,0.00023834,2]
[342762426,1732119051506,-547.44,0.00023834,2]
[342762427,1732119051515,-500.0,0.00023835,2]
[342762428,1732119051524,-7034.76,0.00023835,2]
[342762429,1732119051536,-500.0,0.00023835,2]
[342762430,1732119051547,-1167.56,0.00023835,2]
[342762431,1732119051556,-2386.86,0.00023835,2]
[342762432,1732119051566,-540.69,0.00023835,2]
[342762433,1732119051576,-796.62,0.00023835,2]
[342762434,1732119051586,-291.22887663,0.00023835,2]
[342762435,1732119051596,-2396.96,0.00023835,2]
[342762436,1732119051605,-500.0,0.00023835,2]
[342762437,1732119051615,-500.0,0.00023835,2]
[342762438,1732119051626,-500.0,0.00023835,2]
[342762439,1732119051635,-1074.95,0.00023835,2]
[342762440,1732119051645,-500.0,0.00023835,2]
[342762441,1732119051654,-606.53134276,0.00023963,2]
[342762442,1732119051663,-500.0,0.00023963,2]
[342762443,1732119051673,-500.0,0.00023993,2]
[342762444,1732119051682,-502.24475898,0.00023993,2]
[342762445,1732119051692,-500.0,0.00024081,2]
[342762446,1732119051701,-501.27396191,0.000241,2]
[342762447,1732119051710,-4140.21,0.00024106,2]
[342762448,1732119051720,-696.54,0.00024106,2]
[342762449,1732119051731,-500.0,0.00024106,2]
[342762450,1732119051740,-500.0,0.00024106,2]
[342762451,1732119051749,-2107.99,0.00024106,2]
[342762452,1732119051758,-500.0,0.00024107,2]
[342762453,1732119051767,-500.0,0.00024107,2]
[342762454,1732119051777,-500.0,0.00024107,2]
[342762455,1732119051786,-500.0,0.00024107,2]
[342762456,1732119051795,-583.9,0.00024107,2]
[342762457,1732119051804,-500.0,0.00024107,2]
[342762458,1732119051814,-500.0,0.00024107,2]
[342762459,1732119051823,-500.0,0.00024107,2]
[342762460,1732119051832,-500.0,0.00024107,2]
[342762461,1732119051842,-500.0,0.00024107,2]
[342762462,1732119051851,-500.0,0.00024107,2]
[342762463,1732119051859,-500.0,0.00024107,2]
[342762464,1732119051868,-504.75677894,0.00024107,2]
[342762465,1732119051877,-500.0,0.00024107,2]
[342762466,1732119051887,-500.0,0.00024107,2]
[342762467,1732119051896,-500.0,0.00024107,2]
[342762468,1732119051905,-500.0,0.00024107,2]
[342762469,1732119051915,-500.0,0.00024107,2]
[342762470,1732119051926,-500.0,0.00024107,2]
[342762471,1732119051937,-500.0,0.00024107,2]
[342762472,1732119051947,-695.65,0.00024107,2]
[342762473,1732119051957,-500.0,0.00024107,2]
[342762474,1732119051966,-500.0,0.00024107,2]
[342762475,1732119051975,-500.0,0.00024107,2]
[342762476,1732119051986,-500.0,0.00024107,2]
[342762477,1732119051996,-500.0,0.00024107,2]
[342762478,1732119052004,-500.0,0.00024107,2]
[342762479,1732119052013,-500.0,0.00024107,2]
[342762480,1732119052022,-500.0,0.00024107,2]
[342762481,1732119052032,-500.0,0.00024107,2]
[342762482,1732119052041,-1402.4,0.00024107,2]
[342762483,1732119052050,-515.63,0.00024107,2]
[342762484,1732119052061,-500.0,0.00024107,2]
[342762485,1732119052071,-771.88,0.00024107,2]
[342762486,1732119052080,-1712.23,0.00024107,2]
[342762487,1732119052090,-500.0,0.00024108,2]
[342762488,1732119052100,-500.0,0.00024108,2]
[342762489,1732119052109,-500.0,0.00024108,2]
[342762490,1732119052118,-500.0,0.00024108,2]
[342762491,1732119052127,-500.0,0.00024108,2]
[342762492,1732119052136,-500.0,0.00024108,2]
[342762493,1732119052145,-500.0,0.00024108,2]
[342762494,1732119052154,-500.0,0.00024108,2]
[342762495,1732119052163,-500.0,0.00024108,2]
[342762496,1732119052173,-500.0,0.00024108,2]
[342762497,1732119052182,-500.0,0.00024108,2]
[342762498,1732119052191,-500.0,0.00024108,2]
[342762499,1732119052200,-500.0,0.00024108,2]
[342762500,1732119052209,-500.0,0.00024108,2]
[342762501,1732119052218,-200.0,0.00024108,2]
[342762502,1732119052228,-500.0,0.00024108,2]
[342762503,1732119052239,-500.0,0.00024108,2]
[342762504,1732119052248,-500.0,0.00024108,2]
[342762505,1732119052257,-500.0,0.00024108,2]
[342762506,1732119052267,-500.0,0.00024108,2]
[342762507,1732119052277,-500.0,0.00024108,2]
[342762508,1732119052286,-715.1,0.00024108,2]
[342762509,1732119052296,-535.74,0.00024108,2]
[342762510,1732119052305,-684.43,0.00024108,2]
[342762511,1732119052315,-500.0,0.00024108,2]
[342762512,1732119052324,-1376.81,0.00024108,2]
[342762513,1732119052333,-500.0,0.00024108,2]
[342762514,1732119052343,-500.0,0.00024108,2]
[342762515,1732119052352,-936.96,0.00024108,2]
[342762516,1732119052361,-500.0,0.00024108,2]
[342762517,1732119052370,-2637.14,0.00024108,2]
[342762518,1732119052379,-829.25,0.00024108,2]
[342762519,1732119052389,-509.41,0.00024108,2]
[342762520,1732119052398,-500.0,0.00024108,2]
[342762521,1732119052407,-672.63,0.00024108,2]
[342762522,1732119052417,-637.64,0.00024109,2]
[342762523,1732119052426,-7034.76,0.00024109,2]
[342762524,1732119052435,-500.0,0.00024109,2]
[342762525,1732119052444,-1167.56,0.00024109,2]
[342762526,1732119052453,-2386.86,0.00024109,2]
[342762527,1732119052466,-540.69,0.00024109,2]
[342762528,1732119052475,-796.62,0.00024109,2]
[342762529,1732119052486,-2396.96,0.00024109,2]
[342762530,1732119052497,-500.0,0.00024109,2]
[342762531,1732119052506,-500.0,0.00024109,2]
[342762532,1732119052515,-500.0,0.00024109,2]
[342762533,1732119052524,-1074.95,0.00024109,2]
[342762534,1732119052535,-500.0,0.00024109,2]
[342762535,1732119052545,-500.0,0.00024235,2]
[342762536,1732119052554,-500.0,0.00024235,2]
[342762537,1732119052563,-500.4917188,0.00024235,2]
[342762538,1732119052573,-500.70622727,0.00024236,2]
[342762539,1732119052582,-467.94986428,0.00024236,2]
[342762540,1732119052591,-1000.0,0.00024255,2]
[342762541,1732119052600,-500.0,0.00024346,2]
[342762542,1732119052610,-672.72869676,0.00024361,2]
[342762543,1732119052619,-4140.21,0.0002438,2]
[342762544,1732119052628,-696.54,0.0002438,2]
[342762545,1732119052638,-500.0,0.0002438,2]
[342762546,1732119052647,-500.0,0.0002438,2]
[342762547,1732119052656,-2107.99,0.0002438,2]
[342762548,1732119052665,-500.0,0.00024381,2]
[342762549,1732119052675,-500.0,0.00024381,2]
[342762550,1732119052684,-500.0,0.00024381,2]
[342762551,1732119052693,-500.0,0.00024381,2]
[342762552,1732119052703,-500.0,0.00024381,2]
[342762553,1732119052711,-500.0,0.00024381,2]
[342762554,1732119052793,-500.0,0.00024381,2]
[342762555,1732119052803,-172.04,0.00024381,2]
[342762556,1732119052812,-500.0,0.00024381,2]
[342762557,1732119052820,-500.0,0.00024381,2]
[342762558,1732119052830,-500.0,0.00024381,2]
[342762559,1732119052839,-500.0,0.00024381,2]
[342762560,1732119052847,-500.0,0.00024381,2]
[342762561,1732119052856,-695.65,0.00024381,2]
[342762562,1732119052865,-500.0,0.00024381,2]
[342762563,1732119052874,-500.0,0.00024381,2]
[342762564,1732119052883,-500.0,0.00024381,2]
[342762565,1732119052892,-500.0,0.00024381,2]
[342762566,1732119052901,-500.0,0.00024381,2]
[342762567,1732119052911,-500.0,0.00024381,2]
[342762568,1732119052920,-500.0,0.00024381,2]
[342762569,1732119052929,-500.0,0.00024381,2]
[342762570,1732119052938,-500.0,0.00024381,2]
[342762571,1732119052947,-1402.4,0.00024381,2]
[342762572,1732119052957,-515.63,0.00024381,2]
[342762573,1732119052966,-500.0,0.00024381,2]
[342762574,1732119052975,-771.88,0.00024381,2]
[342762575,1732119052987,-1712.23,0.00024381,2]
[342762576,1732119052997,-500.0,0.00024382,2]
[342762577,1732119053012,-500.0,0.00024382,2]
[342762578,1732119053021,-588.2,0.00024382,2]
[342762579,1732119053030,-500.0,0.00024382,2]
[342762580,1732119053039,-229.88,0.00024382,2]
[342762581,1732119053048,-500.0,0.00024382,2]
[342762582,1732119053057,-443.12843302,0.00024382,2]
[342762583,1732119053066,-500.0,0.00024382,2]
[342762584,1732119053076,-500.0,0.00024382,2]
[342762585,1732119053085,-500.0,0.00024382,2]
[342762586,1732119053095,-441.84078514,0.00024382,2]
[342762587,1732119053104,-200.0,0.00024382,2]
[342762588,1732119053113,-500.0,0.00024382,2]
[342762589,1732119053122,-500.0,0.00024382,2]
[342762590,1732119053131,-500.0,0.00024382,2]
[342762591,1732119053141,-500.0,0.00024382,2]
[342762592,1732119053150,-500.0,0.00024382,2]
[342762593,1732119053170,-500.0,0.00024382,2]
[342762594,1732119053180,-715.1,0.00024382,2]
[342762595,1732119053190,-535.74,0.00024382,2]
[342762596,1732119053200,-684.43,0.00024382,2]
[342762597,1732119053209,-500.0,0.00024382,2]
[342762598,1732119053219,-1376.81,0.00024382,2]
[342762599,1732119053231,-500.0,0.00024382,2]
[342762600,1732119053242,-500.0,0.00024382,2]
[342762601,1732119053252,-936.96,0.00024382,2]
[342762602,1732119053262,-500.0,0.00024382,2]
[342762603,1732119053272,-2637.14,0.00024382,2]
[342762604,1732119053282,-829.25,0.00024382,2]
[342762605,1732119053292,-509.41,0.00024382,2]
[342762606,1732119053302,-500.0,0.00024382,2]
[342762607,1732119053312,-672.63,0.00024382,2]
[342762608,1732119053322,-7034.76,0.00024383,2]
[342762609,1732119053332,-500.0,0.00024383,2]
[342762610,1732119053342,-1167.56,0.00024383,2]
[342762611,1732119053352,-2386.86,0.00024383,2]
[342762612,1732119053362,-540.69,0.00024383,2]
[342762613,1732119053371,-796.62,0.00024383,2]
[342762614,1732119053381,-2396.96,0.00024383,2]
[342762615,1732119053390,-500.0,0.00024383,2]
[342762616,1732119053400,-500.0,0.00024383,2]
[342762617,1732119053410,-489.54489365,0.00024383,2]
[342762618,1732119053420,-1074.95,0.00024383,2]
[342762619,1732119053429,-500.0,0.00024383,2]
[342762620,1732119053438,-1000.0,0.00024511,2]
[342762621,1732119053449,-4140.21,0.00024654,2]
[342762622,1732119053462,-696.54,0.00024654,2]
[342762623,1732119053472,-500.0,0.00024654,2]
[342762624,1732119053483,-2107.99,0.00024654,2]
[342762625,1732119053494,-500.0,0.00024655,2]
[342762626,1732119053503,-500.0,0.00024655,2]
[342762627,1732119053513,-500.0,0.00024655,2]
[342762628,1732119053523,-500.0,0.00024655,2]
[342762629,1732119053535,-500.0,0.00024655,2]
[342762630,1732119053544,-432.25938253,0.00024655,2]
[342762631,1732119053554,-624.63772486,0.00024655,2]
[342762632,1732119053563,-500.0,0.00024655,2]
[342762633,1732119053573,-500.0,0.00024655,2]
[342762634,1732119053582,-500.0,0.00024655,2]
[342762635,1732119053591,-500.0,0.00024655,2]
[342762636,1732119053601,-500.0,0.00024655,2]
[342762637,1732119053610,-695.65,0.00024655,2]
[342762638,1732119053620,-500.0,0.00024655,2]
[342762639,1732119053629,-500.0,0.00024655,2]
[342762640,1732119053638,-500.0,0.00024655,2]
[342762641,1732119053648,-500.0,0.00024655,2]
[342762642,1732119053658,-500.0,0.00024655,2]
[342762643,1732119053667,-500.0,0.00024655,2]
[342762644,1732119053677,-500.0,0.00024655,2]
[342762645,1732119053686,-500.0,0.00024655,2]
[342762646,1732119053696,-500.0,0.00024655,2]
[342762647,1732119053705,-1402.4,0.00024655,2]
[342762648,1732119053715,-515.63,0.00024655,2]
[342762649,1732119053724,-500.0,0.00024655,2]
[342762650,1732119053736,-771.88,0.00024655,2]
[342762651,1732119053745,-1712.23,0.00024655,2]
[342762652,1732119053755,-500.0,0.00024656,2]
[342762653,1732119053764,-500.0,0.00024656,2]
[342762654,1732119053774,-500.0,0.00024656,2]
[342762655,1732119053784,-500.0,0.00024656,2]
[342762656,1732119053793,-200.0,0.00024656,2]
[342762657,1732119053803,-500.0,0.00024656,2]
[342762658,1732119053812,-500.0,0.00024656,2]
[342762659,1732119053821,-500.0,0.00024656,2]
[342762660,1732119053831,-561.24,0.00024656,2]
[342762661,1732119053839,-500.0,0.00024656,2]
[342762662,1732119053849,-715.1,0.00024656,2]
[342762663,1732119053858,-535.74,0.00024656,2]
[342762664,1732119053867,-684.43,0.00024656,2]
[342762665,1732119053877,-227.87535365,0.00024656,2]
[342762666,1732119053886,-1376.81,0.00024656,2]
[342762667,1732119053895,-500.0,0.00024656,2]
[342762668,1732119053905,-936.96,0.00024656,2]
[342762669,1732119053914,-500.0,0.00024656,2]
[342762670,1732119053923,-2637.14,0.00024656,2]
[342762671,1732119053932,-829.25,0.00024656,2]
[342762672,1732119053941,-509.41,0.00024656,2]
[342762673,1732119053950,-164.99577007,0.00024656,2]
[342762674,1732119053960,-672.63,0.00024656,2]
[342762675,1732119053970,-7034.76,0.00024657,2]
[342762676,1732119053979,-339.93048878,0.00024657,2]
[342762677,1732119053989,-1167.56,0.00024657,2]
[342762678,1732119053999,-2386.86,0.00024657,2]
[342762679,1732119054008,-540.69,0.00024657,2]
[342762680,1732119054017,-796.62,0.00024657,2]
[342762681,1732119054026,-2396.96,0.00024657,2]
[342762682,1732119054036,-500.0,0.00024657,2]
[342762683,1732119054045,-500.0,0.00024657,2]
[342762684,1732119054054,-1074.95,0.00024657,2]
[342762685,1732119054063,-500.0,0.00024657,2]
[342762686,1732119054073,-207.44520227,0.00024808,2]
[342762687,1732119054082,-530.0,0.00024812,2]
[342762688,1732119054091,-1110.0,0.00024812,2]
[342762689,1732119054100,-2385.0,0.00024812,2]
[342762690,1732119054110,-4140.21,0.00024928,2]
[342762691,1732119054119,-696.54,0.00024928,2]
[342762692,1732119054128,-500.0,0.00024928,2]
[342762693,1732119054138,-2107.99,0.00024928,2]
[342762694,1732119054147,-500.0,0.00024929,2]
[342762695,1732119054156,-561.79245561,0.00024929,2]
[342762696,1732119054166,-546.78,0.00024929,2]
[342762697,1732119054175,-500.0,0.00024929,2]
[342762698,1732119054184,-500.0,0.00024929,2]
[342762699,1732119054193,-500.0,0.00024929,2]
[342762700,1732119054202,-500.0,0.00024929,2]
[342762701,1732119054211,-500.0,0.00024929,2]
[342762702,1732119054220,-500.0,0.00024929,2]
[342762703,1732119054230,-500.0,0.00024929,2]
[342762704,1732119054242,-695.65,0.00024929,2]
[342762705,1732119054251,-500.0,0.00024929,2]
[342762706,1732119054261,-500.0,0.00024929,2]
[342762707,1732119054270,-500.0,0.00024929,2]
[342762708,1732119054280,-500.0,0.00024929,2]
[342762709,1732119054290,-500.0,0.00024929,2]
[342762710,1732119054299,-500.0,0.00024929,2]
[342762711,1732119054309,-203.72,0.00024929,2]
[342762712,1732119054318,-500.0,0.00024929,2]
[342762713,1732119054328,-500.0,0.00024929,2]
[342762714,1732119054340,-1402.4,0.00024929,2]
[342762715,1732119054349,-515.63,0.00024929,2]
[342762716,1732119054359,-500.0,0.00024929,2]
[342762717,1732119054370,-771.88,0.00024929,2]
[342762718,1732119054381,-1712.23,0.00024929,2]
[342762719,1732119054391,-500.0,0.0002493,2]
[342762720,1732119054401,-500.0,0.0002493,2]
[342762721,1732119054410,-200.0,0.0002493,2]
[342762722,1732119054419,-500.0,0.0002493,2]
[342762723,1732119054431,-500.0,0.0002493,2]
[342762724,1732119054440,-500.0,0.0002493,2]
[342762725,1732119054453,-715.1,0.0002493,2]
[342762726,1732119054464,-535.74,0.0002493,2]
[342762727,1732119054473,-684.43,0.0002493,2]
[342762728,1732119054485,-1376.81,0.0002493,2]
[342762729,1732119054495,-500.0,0.0002493,2]
[342762730,1732119054505,-936.96,0.0002493,2]
[342762731,1732119054515,-500.0,0.0002493,2]
[342762732,1732119054524,-2637.14,0.0002493,2]
[342762733,1732119054537,-829.25,0.0002493,2]
[342762734,1732119054546,-509.41,0.0002493,2]
[342762735,1732119054645,-672.63,0.0002493,2]
[342762736,1732119054655,-7034.76,0.00024931,2]
[342762737,1732119054665,-1167.56,0.00024931,2]
[342762738,1732119054675,-2386.86,0.00024931,2]
[342762739,1732119054688,-540.69,0.00024931,2]
[342762740,1732119054698,-796.62,0.00024931,2]
[342762741,1732119054708,-2396.96,0.00024931,2]
[342762742,1732119054718,-500.0,0.00024931,2]
[342762743,1732119054728,-500.0,0.00024931,2]
[342762744,1732119054740,-1074.95,0.00024931,2]
[342762745,1732119054750,-500.0,0.00024931,2]
[342762746,1732119054760,-4140.21,0.00025202,2]
[342762747,1732119054770,-696.54,0.00025202,2]
[342762748,1732119054780,-500.0,0.00025202,2]
[342762749,1732119054791,-2107.99,0.00025202,2]
[342762750,1732119054801,-500.0,0.00025203,2]
[342762751,1732119054811,-359.54,0.00025203,2]
[342762752,1732119054822,-501.90169142,0.00025203,2]
[342762753,1732119054832,-500.0,0.00025203,2]
[342762754,1732119054841,-500.0,0.00025203,2]
[342762755,1732119054851,-500.0,0.00025203,2]
[342762756,1732119054861,-695.65,0.00025203,2]
[342762757,1732119054878,-500.0,0.00025203,2]
[342762758,1732119054896,-500.0,0.00025203,2]
[342762759,1732119054915,-500.0,0.00025203,2]
[342762760,1732119054933,-500.0,0.00025203,2]